[Event "Titled Tuesday Blitz March 14 Late 2023"]
[White "Kramnik, Vladimir"]
[Black "Foerster-Yialamas, Lucas"]
[WhiteFideId "4101588"]
[BlackFideId "30901774"]
[WhiteElo "2712"]
[BlackElo "2067"]
[Result "1-0"]
[Round "03"]
[TimeControl "180+1"]
[Date "2023.03.14"]
[WhiteClock "0:01:21"]
[BlackClock "0:00:54"]

1. Nf3 {[%clk 0:03:00]}  c5 {[%clk 0:02:56]} 2. b3 {[%clk 0:02:59]}  Nc6 {[%clk 0:02:55]} 3. Bb2 {[%clk 0:02:59]}  d5 {[%clk 0:02:55]} 4. e3 {[%clk 0:02:59]}  Bg4 {[%clk 0:02:53]} 5. Bb5 {[%clk 0:02:56]}  e6 {[%clk 0:02:39]} 6. c4 {[%clk 0:02:56]}  Nf6 {[%clk 0:02:37]} 7. h3 {[%clk 0:02:51]}  Bxf3 {[%clk 0:02:23]} 8. Qxf3 {[%clk 0:02:50]}  a6 {[%clk 0:02:24]} 9. Bxc6+ {[%clk 0:02:49]}  bxc6 {[%clk 0:02:25]} 10. Nc3 {[%clk 0:02:47]}  Bd6 {[%clk 0:02:22]} 11. O-O {[%clk 0:02:39]}  O-O {[%clk 0:02:21]} 12. d3 {[%clk 0:02:36]}  Bc7 {[%clk 0:02:20]} 13. Na4 {[%clk 0:02:29]}  Rb8 {[%clk 0:02:06]} 14. Rfd1 {[%clk 0:02:22]}  Bd6 {[%clk 0:01:56]} 15. Rac1 {[%clk 0:02:10]}  Nd7 {[%clk 0:01:56]} 16. Qe2 {[%clk 0:02:03]}  Nb6 {[%clk 0:01:54]} 17. Nxb6 {[%clk 0:01:55]}  Rxb6 {[%clk 0:01:55]} 18. d4 {[%clk 0:01:54]}  Qe7 {[%clk 0:01:44]} 19. Ba3 {[%clk 0:01:51]}  Rc8 {[%clk 0:01:28]} 20. dxc5 {[%clk 0:01:47]}  Bxc5 {[%clk 0:01:29]} 21. Bxc5 {[%clk 0:01:46]}  Qxc5 {[%clk 0:01:29]} 22. cxd5 {[%clk 0:01:46]}  Qe7 {[%clk 0:01:24]} 23. dxe6 {[%clk 0:01:40]}  Qxe6 {[%clk 0:01:22]} 24. Rc4 {[%clk 0:01:38]}  c5 {[%clk 0:01:18]} 25. Rxc5 {[%clk 0:01:35]}  Re8 {[%clk 0:01:05]} 26. Qc4 {[%clk 0:01:33]}  Rd6 {[%clk 0:01:02]} 27. Rxd6 {[%clk 0:01:28]}  Qxd6 {[%clk 0:01:03]} 28. Rc8 {[%clk 0:01:25]}  Qd1+ {[%clk 0:01:00]} 29. Kh2 {[%clk 0:01:24]}  Qd6+ {[%clk 0:00:57]} 30. g3 {[%clk 0:01:22]}  Qd7 {[%clk 0:00:53]} 31. Rxe8+ {[%clk 0:01:21]}  Qxe8 {[%clk 0:00:54]} 32. Qxa6 {[%clk 0:01:21]} 1-0


[Site "https://www.chess.com"]

[Event "Titled Tuesday Blitz March 14 Late 2023"]
[White "Kraus, Tomas"]
[Black "Tica, Sven"]
[WhiteFideId "331708"]
[BlackFideId "14526948"]
[WhiteElo "2389"]
[BlackElo "2348"]
[Result "1/2-1/2"]
[Round "03"]
[TimeControl "180+1"]
[Date "2023.03.14"]
[WhiteClock "0:00:05"]
[BlackClock "0:00:20"]

1. e4 {[%clk 0:02:59]}  g6 {[%clk 0:02:59]} 2. d4 {[%clk 0:02:59]}  Bg7 {[%clk 0:03:00]} 3. Nc3 {[%clk 0:03:00]}  a6 {[%clk 0:03:01]} 4. Nge2 {[%clk 0:03:00]}  b5 {[%clk 0:03:01]} 5. g3 {[%clk 0:03:00]}  Bb7 {[%clk 0:03:02]} 6. Bg2 {[%clk 0:02:57]}  d6 {[%clk 0:03:02]} 7. a3 {[%clk 0:02:57]}  Nd7 {[%clk 0:03:03]} 8. O-O {[%clk 0:02:57]}  c5 {[%clk 0:03:03]} 9. Be3 {[%clk 0:02:56]}  cxd4 {[%clk 0:03:00]} 10. Nxd4 {[%clk 0:02:57]}  Nc5 {[%clk 0:02:55]} 11. f4 {[%clk 0:02:51]}  Qc7 {[%clk 0:02:45]} 12. Nd5 {[%clk 0:02:48]}  Bxd5 {[%clk 0:02:45]} 13. exd5 {[%clk 0:02:49]}  Nf6 {[%clk 0:02:45]} 14. c3 {[%clk 0:02:34]}  Na4 {[%clk 0:02:36]} 15. Qe2 {[%clk 0:02:29]}  Qc4 {[%clk 0:02:34]} 16. Qf2 {[%clk 0:02:15]}  Ng4 {[%clk 0:02:25]} 17. Qf3 {[%clk 0:01:57]}  Nxe3 {[%clk 0:02:21]} 18. Qxe3 {[%clk 0:01:58]}  Bxd4 {[%clk 0:02:21]} 19. cxd4 {[%clk 0:01:58]}  Nxb2 {[%clk 0:02:15]} 20. Rae1 {[%clk 0:01:56]}  Qc7 {[%clk 0:02:11]} 21. f5 {[%clk 0:01:51]}  Nc4 {[%clk 0:02:10]} 22. Qh6 {[%clk 0:01:49]}  O-O-O {[%clk 0:02:04]} 23. f6 {[%clk 0:01:42]}  exf6 {[%clk 0:01:59]} 24. Rxf6 {[%clk 0:01:41]}  Rhe8 {[%clk 0:01:55]} 25. Ref1 {[%clk 0:01:39]}  Re7 {[%clk 0:01:53]} 26. Qxh7 {[%clk 0:01:35]}  Ne3 {[%clk 0:01:26]} 27. Rxf7 {[%clk 0:01:25]}  Rdd7 {[%clk 0:01:14]} 28. Bh3 {[%clk 0:00:59]}  Rxf7 {[%clk 0:01:08]} 29. Qxf7 {[%clk 0:00:50]}  Nxf1 {[%clk 0:01:05]} 30. Kxf1 {[%clk 0:00:47]}  Qc1+ {[%clk 0:00:51]} 31. Kg2 {[%clk 0:00:45]}  Qc2+ {[%clk 0:00:47]} 32. Kg1 {[%clk 0:00:15]}  Qd1+ {[%clk 0:00:46]} 33. Kg2 {[%clk 0:00:13]}  Qd2+ {[%clk 0:00:47]} 34. Qf2 {[%clk 0:00:11]}  Qd3 {[%clk 0:00:21]} 35. Bxd7+ {[%clk 0:00:09]}  Kxd7 {[%clk 0:00:22]} 36. Qf7+ {[%clk 0:00:09]}  Kd8 {[%clk 0:00:23]} 37. Qf8+ {[%clk 0:00:08]}  Kd7 {[%clk 0:00:22]} 38. Qg7+ {[%clk 0:00:07]}  Kc8 {[%clk 0:00:22]} 39. Qf8+ {[%clk 0:00:07]}  Kb7 {[%clk 0:00:20]} 40. Qe7+ {[%clk 0:00:07]}  Kb8 {[%clk 0:00:20]} 41. Qxd6+ {[%clk 0:00:07]}  Kc8 {[%clk 0:00:21]} 42. Qc6+ {[%clk 0:00:07]}  Kd8 {[%clk 0:00:22]} 43. Qe6 {[%clk 0:00:06]}  Qxd4 {[%clk 0:00:21]} 44. d6 {[%clk 0:00:06]}  Qd2+ {[%clk 0:00:21]} 45. Kh3 {[%clk 0:00:06]}  Qh6+ {[%clk 0:00:21]} 46. Kg2 {[%clk 0:00:06]}  Qd2+ {[%clk 0:00:21]} 47. Kf3 {[%clk 0:00:06]}  Qd1+ {[%clk 0:00:20]} 48. Kg2 {[%clk 0:00:05]}  Qd2+ {[%clk 0:00:20]} 1/2-1/2


[Site "https://www.chess.com"]

[Event "Titled Tuesday Blitz March 14 Late 2023"]
[White "Larino Nieto, David"]
[Black "Daneshvar, Bardiya"]
[WhiteFideId "2256444"]
[BlackFideId "12576468"]
[WhiteElo "2506"]
[BlackElo "2468"]
[Result "0-1"]
[Round "03"]
[TimeControl "180+1"]
[Date "2023.03.14"]
[WhiteClock "0:00:40"]
[BlackClock "0:02:18"]

1. e4 {[%clk 0:02:51]}  Nf6 {[%clk 0:02:57]} 2. Nc3 {[%clk 0:02:49]}  d5 {[%clk 0:02:56]} 3. e5 {[%clk 0:02:48]}  d4 {[%clk 0:02:54]} 4. Nce2 {[%clk 0:02:46]}  Nfd7 {[%clk 0:02:50]} 5. e6 {[%clk 0:02:45]}  fxe6 {[%clk 0:02:46]} 6. Nxd4 {[%clk 0:02:45]}  Nf6 {[%clk 0:02:47]} 7. Ndf3 {[%clk 0:02:35]}  g6 {[%clk 0:02:47]} 8. Ne5 {[%clk 0:02:34]}  Bg7 {[%clk 0:02:46]} 9. Ngf3 {[%clk 0:02:34]}  O-O {[%clk 0:02:46]} 10. d4 {[%clk 0:02:33]}  c5 {[%clk 0:02:45]} 11. c3 {[%clk 0:02:23]}  cxd4 {[%clk 0:02:42]} 12. Qxd4 {[%clk 0:02:22]}  Nbd7 {[%clk 0:02:31]} 13. Bc4 {[%clk 0:02:18]}  Nxe5 {[%clk 0:02:31]} 14. Qxd8 {[%clk 0:02:12]}  Nxf3+ {[%clk 0:02:30]} 15. gxf3 {[%clk 0:01:03]}  Rxd8 {[%clk 0:02:29]} 16. h4 {[%clk 0:00:59]}  Kf7 {[%clk 0:02:29]} 17. Ke2 {[%clk 0:00:58]}  Bd7 {[%clk 0:02:28]} 18. Bf4 {[%clk 0:00:56]}  Bc6 {[%clk 0:02:27]} 19. Rag1 {[%clk 0:00:57]}  Bd5 {[%clk 0:02:25]} 20. Bd3 {[%clk 0:00:56]}  Bxa2 {[%clk 0:02:23]} 21. Be5 {[%clk 0:00:54]}  Rd5 {[%clk 0:02:21]} 22. f4 {[%clk 0:00:54]}  Rad8 {[%clk 0:02:20]} 23. Bb1 {[%clk 0:00:42]}  Rd2+ {[%clk 0:02:18]} 24. Ke3 {[%clk 0:00:40]}  Bxb1 {[%clk 0:02:18]} 0-1


[Site "https://www.chess.com"]

[Event "Titled Tuesday Blitz March 14 Late 2023"]
[White "Lazavik, Denis"]
[Black "Christiansen, Johan-Sebastian"]
[WhiteFideId "13515110"]
[BlackFideId "1512668"]
[WhiteElo "2560"]
[BlackElo "2517"]
[Result "1-0"]
[Round "03"]
[TimeControl "180+1"]
[Date "2023.03.14"]
[WhiteClock "0:00:07"]
[BlackClock "0:00:02"]

1. d4 {[%clk 0:03:00]}  Nf6 {[%clk 0:02:59]} 2. c4 {[%clk 0:03:01]}  c5 {[%clk 0:03:00]} 3. d5 {[%clk 0:03:01]}  b5 {[%clk 0:03:00]} 4. cxb5 {[%clk 0:03:01]}  a6 {[%clk 0:03:01]} 5. e3 {[%clk 0:03:02]}  e6 {[%clk 0:03:01]} 6. dxe6 {[%clk 0:02:54]}  fxe6 {[%clk 0:03:02]} 7. Nc3 {[%clk 0:02:49]}  d5 {[%clk 0:03:02]} 8. Nf3 {[%clk 0:02:45]}  Bd6 {[%clk 0:03:02]} 9. a4 {[%clk 0:02:43]}  Nbd7 {[%clk 0:03:02]} 10. b3 {[%clk 0:02:41]}  O-O {[%clk 0:03:02]} 11. Bb2 {[%clk 0:02:40]}  Qe7 {[%clk 0:02:57]} 12. Be2 {[%clk 0:02:39]}  axb5 {[%clk 0:02:54]} 13. Nxb5 {[%clk 0:02:38]}  Bb8 {[%clk 0:02:53]} 14. O-O {[%clk 0:02:38]}  Bb7 {[%clk 0:02:51]} 15. Qc2 {[%clk 0:02:22]}  e5 {[%clk 0:02:49]} 16. g3 {[%clk 0:02:22]}  e4 {[%clk 0:02:46]} 17. Nh4 {[%clk 0:02:22]}  Qe6 {[%clk 0:02:42]} 18. Rac1 {[%clk 0:01:37]}  Ra6 {[%clk 0:00:35]} 19. b4 {[%clk 0:01:31]}  c4 {[%clk 0:00:23]} 20. Nd4 {[%clk 0:01:30]}  Qf7 {[%clk 0:00:23]} 21. f4 {[%clk 0:01:29]}  exf3 {[%clk 0:00:23]} 22. Bxf3 {[%clk 0:01:28]}  Re8 {[%clk 0:00:22]} 23. Nhf5 {[%clk 0:01:23]}  Ne5 {[%clk 0:00:23]} 24. Be2 {[%clk 0:01:19]}  Qg6 {[%clk 0:00:23]} 25. b5 {[%clk 0:01:16]}  Ra8 {[%clk 0:00:21]} 26. Ba3 {[%clk 0:01:01]}  Kh8 {[%clk 0:00:08]} 27. Bb4 {[%clk 0:00:59]}  Bc7 {[%clk 0:00:08]} 28. Ra1 {[%clk 0:00:54]}  Ne4 {[%clk 0:00:08]} 29. a5 {[%clk 0:00:52]}  Bc8 {[%clk 0:00:09]} 30. b6 {[%clk 0:00:53]}  Bxf5 {[%clk 0:00:08]} 31. Nxf5 {[%clk 0:00:44]}  Bxb6 {[%clk 0:00:09]} 32. axb6 {[%clk 0:00:37]}  Rxa1 {[%clk 0:00:10]} 33. Rxa1 {[%clk 0:00:37]}  Qxf5 {[%clk 0:00:10]} 34. Rf1 {[%clk 0:00:35]}  Qg5 {[%clk 0:00:11]} 35. Kg2 {[%clk 0:00:20]}  Qxe3 {[%clk 0:00:10]} 36. b7 {[%clk 0:00:21]}  h6 {[%clk 0:00:07]} 37. Qb2 {[%clk 0:00:16]}  Nd3 {[%clk 0:00:06]} 38. Bxd3 {[%clk 0:00:14]}  cxd3 {[%clk 0:00:07]} 39. Rf8+ {[%clk 0:00:09]}  Rxf8 {[%clk 0:00:05]} 40. Bxf8 {[%clk 0:00:10]}  Nf6 {[%clk 0:00:01]} 41. Bxg7+ {[%clk 0:00:10]}  Kxg7 {[%clk 0:00:01]} 42. b8=Q {[%clk 0:00:10]}  Qe4+ {[%clk 0:00:02]} 43. Kf2 {[%clk 0:00:10]}  Kg6 {[%clk 0:00:01]} 44. Q8b6 {[%clk 0:00:07]}  Kf5 {[%clk 0:00:01]} 45. Q6xf6+ {[%clk 0:00:07]}  Kg4 {[%clk 0:00:01]} 46. Qf4+ {[%clk 0:00:07]}  Kh3 {[%clk 0:00:02]} 47. Qxe4 {[%clk 0:00:07]} 1-0


[Site "https://www.chess.com"]

[Event "Titled Tuesday Blitz March 14 Late 2023"]
[White "Liu, Casper"]
[Black "Castillo Pena, Patricia Evarista"]
[WhiteFideId "1454153"]
[BlackFideId "6412106"]
[WhiteElo "2221"]
[BlackElo "1919"]
[Result "1-0"]
[Round "03"]
[TimeControl "180+1"]
[Date "2023.03.14"]
[WhiteClock "0:02:31"]
[BlackClock "0:02:12"]

1. d4 {[%clk 0:03:00]}  d5 {[%clk 0:02:59]} 2. c4 {[%clk 0:03:00]}  c6 {[%clk 0:02:59]} 3. Nc3 {[%clk 0:02:58]}  Nf6 {[%clk 0:02:58]} 4. Nf3 {[%clk 0:02:59]}  e6 {[%clk 0:02:58]} 5. Bg5 {[%clk 0:02:59]}  h6 {[%clk 0:02:58]} 6. Bxf6 {[%clk 0:02:57]}  Qxf6 {[%clk 0:02:57]} 7. cxd5 {[%clk 0:02:58]}  exd5 {[%clk 0:02:57]} 8. e4 {[%clk 0:02:59]}  dxe4 {[%clk 0:02:54]} 9. Nxe4 {[%clk 0:03:00]}  Qd8 {[%clk 0:02:54]} 10. Bc4 {[%clk 0:02:57]}  Bb4+ {[%clk 0:02:52]} 11. Nc3 {[%clk 0:02:44]}  O-O {[%clk 0:02:51]} 12. O-O {[%clk 0:02:44]}  Bg4 {[%clk 0:02:50]} 13. h3 {[%clk 0:02:38]}  Bh5 {[%clk 0:02:50]} 14. g4 {[%clk 0:02:37]}  Bg6 {[%clk 0:02:50]} 15. Ne5 {[%clk 0:02:38]}  Qf6 {[%clk 0:02:19]} 16. f4 {[%clk 0:02:33]}  Bxc3 {[%clk 0:02:12]} 17. bxc3 {[%clk 0:02:32]}  Bf5 {[%clk 0:02:12]} 18. gxf5 {[%clk 0:02:31]} 1-0


[Site "https://www.chess.com"]

[Event "Titled Tuesday Blitz March 14 Late 2023"]
[White "Livaic, Leon"]
[Black "Ruiz Castillo, Joshua Daniel"]
[WhiteFideId "14531534"]
[BlackFideId "4400704"]
[WhiteElo "2509"]
[BlackElo "2491"]
[Result "1/2-1/2"]
[Round "03"]
[TimeControl "180+1"]
[Date "2023.03.14"]
[WhiteClock "0:00:25"]
[BlackClock "0:00:32"]

1. d4 {[%clk 0:03:00]}  e6 {[%clk 0:02:56]} 2. c4 {[%clk 0:03:00]}  d5 {[%clk 0:02:56]} 3. Nc3 {[%clk 0:03:00]}  a6 {[%clk 0:02:57]} 4. cxd5 {[%clk 0:02:59]}  exd5 {[%clk 0:02:58]} 5. Nf3 {[%clk 0:02:59]}  c6 {[%clk 0:02:58]} 6. Bg5 {[%clk 0:02:58]}  Be7 {[%clk 0:02:57]} 7. Bxe7 {[%clk 0:02:57]}  Nxe7 {[%clk 0:02:57]} 8. e3 {[%clk 0:02:58]}  O-O {[%clk 0:02:57]} 9. Bd3 {[%clk 0:02:58]}  Bf5 {[%clk 0:02:57]} 10. O-O {[%clk 0:02:58]}  Nd7 {[%clk 0:02:54]} 11. b4 {[%clk 0:02:58]}  Nb6 {[%clk 0:02:53]} 12. a4 {[%clk 0:02:56]}  Bxd3 {[%clk 0:02:43]} 13. Qxd3 {[%clk 0:02:57]}  Nec8 {[%clk 0:02:43]} 14. a5 {[%clk 0:02:56]}  Nc4 {[%clk 0:02:43]} 15. e4 {[%clk 0:02:52]}  dxe4 {[%clk 0:02:42]} 16. Nxe4 {[%clk 0:02:53]}  N8d6 {[%clk 0:02:37]} 17. Nc5 {[%clk 0:02:49]}  b6 {[%clk 0:02:19]} 18. axb6 {[%clk 0:02:47]}  Nxb6 {[%clk 0:02:20]} 19. Rxa6 {[%clk 0:02:44]}  Nb5 {[%clk 0:02:15]} 20. Rxa8 {[%clk 0:02:36]}  Qxa8 {[%clk 0:02:13]} 21. Ng5 {[%clk 0:02:24]}  g6 {[%clk 0:02:12]} 22. h4 {[%clk 0:01:55]}  Qd8 {[%clk 0:01:59]} 23. Rd1 {[%clk 0:01:51]}  Nd5 {[%clk 0:01:57]} 24. Qd2 {[%clk 0:01:42]}  Ndc3 {[%clk 0:01:54]} 25. Re1 {[%clk 0:01:35]}  Qxd4 {[%clk 0:01:54]} 26. Qxd4 {[%clk 0:01:34]}  Nxd4 {[%clk 0:01:54]} 27. Nd7 {[%clk 0:01:27]}  Rd8 {[%clk 0:01:53]} 28. Re7 {[%clk 0:01:12]}  Nd5 {[%clk 0:01:33]} 29. Rxf7 {[%clk 0:01:11]}  h6 {[%clk 0:01:28]} 30. Nf6+ {[%clk 0:01:11]}  Nxf6 {[%clk 0:01:27]} 31. Rxf6 {[%clk 0:01:12]}  hxg5 {[%clk 0:01:28]} 32. Rxg6+ {[%clk 0:01:12]}  Kf7 {[%clk 0:01:27]} 33. Rxg5 {[%clk 0:01:12]}  Rb8 {[%clk 0:01:27]} 34. h5 {[%clk 0:00:53]}  Rxb4 {[%clk 0:01:23]} 35. h6 {[%clk 0:00:53]}  Ne2+ {[%clk 0:01:20]} 36. Kf1 {[%clk 0:00:53]}  Nf4 {[%clk 0:01:20]} 37. f3 {[%clk 0:00:50]}  Rb1+ {[%clk 0:01:17]} 38. Kf2 {[%clk 0:00:50]}  Rh1 {[%clk 0:01:18]} 39. Rf5+ {[%clk 0:00:49]}  Ke6 {[%clk 0:01:16]} 40. Rxf4 {[%clk 0:00:50]}  Rxh6 {[%clk 0:01:16]} 41. Rc4 {[%clk 0:00:48]}  Kd5 {[%clk 0:01:15]} 42. Rc1 {[%clk 0:00:48]}  c5 {[%clk 0:01:09]} 43. g4 {[%clk 0:00:49]}  c4 {[%clk 0:00:54]} 44. Kg3 {[%clk 0:00:46]}  Rc6 {[%clk 0:00:52]} 45. g5 {[%clk 0:00:46]}  c3 {[%clk 0:00:51]} 46. Kg4 {[%clk 0:00:46]}  Ke6 {[%clk 0:00:50]} 47. Rc2 {[%clk 0:00:45]}  Kf7 {[%clk 0:00:36]} 48. f4 {[%clk 0:00:45]}  Rc4 {[%clk 0:00:35]} 49. Kf5 {[%clk 0:00:45]}  Rc5+ {[%clk 0:00:34]} 50. Kg4 {[%clk 0:00:39]}  Rc4 {[%clk 0:00:35]} 51. Kf5 {[%clk 0:00:32]}  Rc5+ {[%clk 0:00:35]} 52. Ke4 {[%clk 0:00:33]}  Rc4+ {[%clk 0:00:36]} 53. Ke5 {[%clk 0:00:32]}  Kg6 {[%clk 0:00:34]} 54. f5+ {[%clk 0:00:29]}  Kxg5 {[%clk 0:00:34]} 55. f6 {[%clk 0:00:27]}  Kg6 {[%clk 0:00:34]} 56. Kd5 {[%clk 0:00:24]}  Rc8 {[%clk 0:00:32]} 57. Kd4 {[%clk 0:00:24]}  Kxf6 {[%clk 0:00:31]} 58. Rxc3 {[%clk 0:00:24]}  Rxc3 {[%clk 0:00:32]} 59. Kxc3 {[%clk 0:00:25]} 1/2-1/2


[Site "https://www.chess.com"]

[Event "Titled Tuesday Blitz March 14 Late 2023"]
[White "Madaminov, Mukhiddin"]
[Black "Thomforde-Toates, Noah"]
[WhiteFideId "14210703"]
[BlackFideId "30951992"]
[WhiteElo "2511"]
[BlackElo "2615"]
[Result "0-1"]
[Round "03"]
[TimeControl "180+1"]
[Date "2023.03.14"]
[WhiteClock "0:00:07"]
[BlackClock "0:00:14"]

1. d4 {[%clk 0:03:00]}  Nf6 {[%clk 0:02:59]} 2. Nc3 {[%clk 0:03:01]}  g6 {[%clk 0:02:58]} 3. e4 {[%clk 0:02:59]}  d6 {[%clk 0:02:58]} 4. f4 {[%clk 0:03:00]}  Bg7 {[%clk 0:02:53]} 5. Bd3 {[%clk 0:03:00]}  O-O {[%clk 0:02:50]} 6. Nf3 {[%clk 0:03:00]}  Nc6 {[%clk 0:02:45]} 7. e5 {[%clk 0:02:59]}  dxe5 {[%clk 0:02:44]} 8. dxe5 {[%clk 0:03:00]}  Nd5 {[%clk 0:02:43]} 9. O-O {[%clk 0:03:00]}  Bg4 {[%clk 0:02:40]} 10. h3 {[%clk 0:02:55]}  Nxc3 {[%clk 0:02:35]} 11. bxc3 {[%clk 0:02:51]}  Bf5 {[%clk 0:02:30]} 12. Be3 {[%clk 0:02:50]}  Qd5 {[%clk 0:02:26]} 13. Qe2 {[%clk 0:02:23]}  Rad8 {[%clk 0:02:13]} 14. Rfd1 {[%clk 0:02:21]}  Qa5 {[%clk 0:02:07]} 15. Bxf5 {[%clk 0:02:13]}  gxf5 {[%clk 0:02:05]} 16. Nd4 {[%clk 0:02:14]}  Nxd4 {[%clk 0:01:59]} 17. cxd4 {[%clk 0:02:14]}  e6 {[%clk 0:01:58]} 18. c4 {[%clk 0:02:13]}  Kh8 {[%clk 0:01:54]} 19. Rab1 {[%clk 0:02:07]}  b6 {[%clk 0:01:53]} 20. Rd2 {[%clk 0:01:40]}  Rg8 {[%clk 0:01:48]} 21. Kf2 {[%clk 0:01:31]}  Bf8 {[%clk 0:01:45]} 22. Rbd1 {[%clk 0:01:27]}  Be7 {[%clk 0:01:40]} 23. g4 {[%clk 0:01:21]}  Bh4+ {[%clk 0:01:34]} 24. Kf1 {[%clk 0:01:16]}  Be7 {[%clk 0:01:01]} 25. g5 {[%clk 0:01:13]}  Qa4 {[%clk 0:00:58]} 26. h4 {[%clk 0:01:10]}  c6 {[%clk 0:00:46]} 27. Kf2 {[%clk 0:01:04]}  a6 {[%clk 0:00:44]} 28. Qf1 {[%clk 0:00:20]}  b5 {[%clk 0:00:40]} 29. d5 {[%clk 0:00:21]}  cxd5 {[%clk 0:00:35]} 30. cxd5 {[%clk 0:00:21]}  Rxd5 {[%clk 0:00:26]} 31. Rxd5 {[%clk 0:00:21]}  exd5 {[%clk 0:00:26]} 32. Rxd5 {[%clk 0:00:20]}  Rc8 {[%clk 0:00:22]} 33. Qd3 {[%clk 0:00:19]}  Qxa2+ {[%clk 0:00:22]} 34. Kf3 {[%clk 0:00:14]}  Qh2 {[%clk 0:00:21]} 35. Qxf5 {[%clk 0:00:10]}  Qh1+ {[%clk 0:00:21]} 36. Kg3 {[%clk 0:00:11]}  Qxd5 {[%clk 0:00:09]} 37. Qxc8+ {[%clk 0:00:11]}  Kg7 {[%clk 0:00:10]} 38. Qxa6 {[%clk 0:00:09]}  Qe4 {[%clk 0:00:10]} 39. Qh6+ {[%clk 0:00:09]}  Kg8 {[%clk 0:00:10]} 40. Qb6 {[%clk 0:00:09]}  b4 {[%clk 0:00:10]} 41. h5 {[%clk 0:00:09]}  Kg7 {[%clk 0:00:07]} 42. h6+ {[%clk 0:00:08]}  Kg8 {[%clk 0:00:08]} 43. Qb8+ {[%clk 0:00:07]}  Bf8 {[%clk 0:00:08]} 44. Qb6 {[%clk 0:00:06]}  Qd3 {[%clk 0:00:08]} 45. Kf3 {[%clk 0:00:06]}  Qf1+ {[%clk 0:00:08]} 46. Ke4 {[%clk 0:00:06]}  Qc4+ {[%clk 0:00:08]} 47. Bd4 {[%clk 0:00:06]}  Qe2+ {[%clk 0:00:08]} 48. Be3 {[%clk 0:00:03]}  Qg2+ {[%clk 0:00:08]} 49. Kd4 {[%clk 0:00:03]}  Qb2+ {[%clk 0:00:08]} 50. Kd5 {[%clk 0:00:03]}  Qb3+ {[%clk 0:00:07]} 51. Kc6 {[%clk 0:00:03]}  Qc4+ {[%clk 0:00:08]} 52. Kd7 {[%clk 0:00:02]}  b3 {[%clk 0:00:08]} 53. Bd4 {[%clk 0:00:02]}  Qd5+ {[%clk 0:00:08]} 54. Kc8 {[%clk 0:00:02]}  Qa8+ {[%clk 0:00:07]} 55. Kc7 {[%clk 0:00:03]}  Qd5 {[%clk 0:00:06]} 56. Kc8 {[%clk 0:00:01]}  Qc4+ {[%clk 0:00:06]} 57. Kd7 {[%clk 0:00:01]}  Qd5+ {[%clk 0:00:04]} 58. Ke8 {[%clk 0:00:02]}  Qe6+ {[%clk 0:00:04]} 59. Kd8 {[%clk 0:00:02]}  Qxb6+ {[%clk 0:00:04]} 60. Bxb6 {[%clk 0:00:03]}  b2 {[%clk 0:00:04]} 61. f5 {[%clk 0:00:01]}  b1=Q {[%clk 0:00:05]} 62. Bc7 {[%clk 0:00:02]}  Qxf5 {[%clk 0:00:06]} 63. Bd6 {[%clk 0:00:01]}  Qe6 {[%clk 0:00:07]} 64. Bxf8 {[%clk 0:00:01]}  Kxf8 {[%clk 0:00:07]} 65. Kc7 {[%clk 0:00:02]}  Qxe5+ {[%clk 0:00:08]} 66. Kd8 {[%clk 0:00:03]}  Qxg5+ {[%clk 0:00:09]} 67. Kd7 {[%clk 0:00:04]}  Qxh6 {[%clk 0:00:10]} 68. Kc7 {[%clk 0:00:04]}  Qg6 {[%clk 0:00:11]} 69. Kd8 {[%clk 0:00:04]}  h5 {[%clk 0:00:12]} 70. Kd7 {[%clk 0:00:05]}  h4 {[%clk 0:00:12]} 71. Kc7 {[%clk 0:00:06]}  h3 {[%clk 0:00:13]} 72. Kd8 {[%clk 0:00:07]}  h2 {[%clk 0:00:14]} 0-1


[Site "https://www.chess.com"]

[Event "Titled Tuesday Blitz March 14 Late 2023"]
[White "Manelyuk, Daniil"]
[Black "Sattarov, Bobir"]
[WhiteFideId "44173920"]
[BlackFideId "14203081"]
[WhiteElo "2259"]
[BlackElo "2351"]
[Result "1/2-1/2"]
[Round "03"]
[TimeControl "180+1"]
[Date "2023.03.14"]
[WhiteClock "0:00:05"]
[BlackClock "0:00:07"]

1. e4 {[%clk 0:02:53]}  e5 {[%clk 0:02:59]} 2. Nf3 {[%clk 0:02:52]}  Nc6 {[%clk 0:03:00]} 3. Bb5 {[%clk 0:02:52]}  a6 {[%clk 0:03:00]} 4. Ba4 {[%clk 0:02:52]}  Bc5 {[%clk 0:03:00]} 5. O-O {[%clk 0:02:51]}  Qf6 {[%clk 0:03:00]} 6. c3 {[%clk 0:02:49]}  Nge7 {[%clk 0:03:00]} 7. d3 {[%clk 0:02:38]}  h6 {[%clk 0:03:00]} 8. Nbd2 {[%clk 0:02:38]}  O-O {[%clk 0:02:59]} 9. Bb3 {[%clk 0:02:37]}  d6 {[%clk 0:02:59]} 10. Nc4 {[%clk 0:02:37]}  Ng6 {[%clk 0:02:59]} 11. Ne3 {[%clk 0:02:36]}  Nf4 {[%clk 0:02:59]} 12. Nd5 {[%clk 0:02:36]}  Nxd5 {[%clk 0:02:58]} 13. exd5 {[%clk 0:02:34]}  Ne7 {[%clk 0:02:59]} 14. Nd2 {[%clk 0:02:04]}  Qg6 {[%clk 0:02:55]} 15. Ne4 {[%clk 0:01:45]}  Ba7 {[%clk 0:02:54]} 16. Kh1 {[%clk 0:01:45]}  f5 {[%clk 0:02:53]} 17. Nd2 {[%clk 0:01:44]}  f4 {[%clk 0:02:52]} 18. Ne4 {[%clk 0:01:37]}  Nf5 {[%clk 0:02:02]} 19. d4 {[%clk 0:01:03]}  Nh4 {[%clk 0:01:59]} 20. Rg1 {[%clk 0:00:48]}  Qxe4 {[%clk 0:01:58]} 21. Bc2 {[%clk 0:00:48]}  Bg4 {[%clk 0:01:19]} 22. Bxe4 {[%clk 0:00:38]}  Bxd1 {[%clk 0:01:18]} 23. Rxd1 {[%clk 0:00:38]}  exd4 {[%clk 0:01:13]} 24. cxd4 {[%clk 0:00:39]}  f3 {[%clk 0:00:58]} 25. gxf3 {[%clk 0:00:28]}  Nxf3 {[%clk 0:00:58]} 26. Bxf3 {[%clk 0:00:28]}  Rxf3 {[%clk 0:00:57]} 27. Be3 {[%clk 0:00:29]}  Rf5 {[%clk 0:00:56]} 28. Rac1 {[%clk 0:00:29]}  Bb6 {[%clk 0:00:56]} 29. a4 {[%clk 0:00:26]}  a5 {[%clk 0:00:56]} 30. Rg1 {[%clk 0:00:23]}  Kf7 {[%clk 0:00:56]} 31. Rg4 {[%clk 0:00:23]}  Rxd5 {[%clk 0:00:55]} 32. Rcg1 {[%clk 0:00:23]}  g5 {[%clk 0:00:41]} 33. h4 {[%clk 0:00:23]}  Rh8 {[%clk 0:00:28]} 34. R1g3 {[%clk 0:00:16]}  Ke6 {[%clk 0:00:26]} 35. Kg2 {[%clk 0:00:15]}  Kd7 {[%clk 0:00:18]} 36. hxg5 {[%clk 0:00:12]}  hxg5 {[%clk 0:00:19]} 37. Rxg5 {[%clk 0:00:12]}  Kc6 {[%clk 0:00:19]} 38. Rxd5 {[%clk 0:00:05]}  Kxd5 {[%clk 0:00:20]} 39. Rg5+ {[%clk 0:00:05]}  Kc4 {[%clk 0:00:20]} 40. Rg7 {[%clk 0:00:05]}  Rh5 {[%clk 0:00:15]} 41. d5 {[%clk 0:00:05]}  Rxd5 {[%clk 0:00:10]} 42. Bxb6 {[%clk 0:00:04]}  cxb6 {[%clk 0:00:11]} 43. Rxb7 {[%clk 0:00:04]}  Kc5 {[%clk 0:00:11]} 44. f4 {[%clk 0:00:05]}  Rd4 {[%clk 0:00:11]} 45. Kf3 {[%clk 0:00:05]}  Rxa4 {[%clk 0:00:11]} 46. f5 {[%clk 0:00:05]}  Rb4 {[%clk 0:00:08]} 47. f6 {[%clk 0:00:05]}  Rb3+ {[%clk 0:00:07]} 48. Ke4 {[%clk 0:00:04]}  d5+ {[%clk 0:00:06]} 49. Ke5 {[%clk 0:00:04]}  Rxb2 {[%clk 0:00:06]} 50. f7 {[%clk 0:00:04]}  Re2+ {[%clk 0:00:05]} 51. Kf6 {[%clk 0:00:05]}  Rf2+ {[%clk 0:00:06]} 52. Ke7 {[%clk 0:00:05]}  a4 {[%clk 0:00:06]} 53. Rc7+ {[%clk 0:00:04]}  Kb4 {[%clk 0:00:06]} 54. Rc6 {[%clk 0:00:05]}  Rxf7+ {[%clk 0:00:05]} 55. Kxf7 {[%clk 0:00:05]}  b5 {[%clk 0:00:05]} 56. Ke6 {[%clk 0:00:06]}  a3 {[%clk 0:00:06]} 57. Kxd5 {[%clk 0:00:06]}  a2 {[%clk 0:00:06]} 58. Ra6 {[%clk 0:00:06]}  Kb3 {[%clk 0:00:06]} 59. Kc5 {[%clk 0:00:04]}  b4 {[%clk 0:00:07]} 60. Rxa2 {[%clk 0:00:04]}  Kxa2 {[%clk 0:00:07]} 61. Kxb4 {[%clk 0:00:05]} 1/2-1/2


[Site "https://www.chess.com"]